[Event "*** Titled Tuesday Blitz"]
[Site "Chess.com"]
[Date "2020.04.14"]
[Round "1"]
[White "bancsoo"]
[Black "Hadza_3"]
[Result "1-0"]
[WhiteElo "2765"]
[BlackElo "2399"]
[TimeControl "180+1"]
[EndTime "10:04:48 PDT"]
[Termination "bancsoo won by resignation"]

1. d4 {[%clk 0:02:55.8]} 1... Nf6 {[%clk 0:02:59.9]} 2. Nf3 {[%clk 0:02:47.9]}
2... e6 {[%clk 0:02:59.9]} 3. g3 {[%clk 0:02:47.3]} 3... b6 {[%clk 0:02:58.5]}
4. Bg2 {[%clk 0:02:44.3]} 4... Bb7 {[%clk 0:02:59.4]} 5. O-O {[%clk 0:02:44.7]}
5... d6 {[%clk 0:02:59.5]} 6. c4 {[%clk 0:02:45.4]} 6... Nbd7 {[%clk 0:02:59.6]}
7. Nc3 {[%clk 0:02:46.1]} 7... Be7 {[%clk 0:02:59.9]} 8. d5 {[%clk 0:02:46]}
8... e5 {[%clk 0:02:59.8]} 9. e4 {[%clk 0:02:46.5]} 9... h6 {[%clk 0:02:59.9]}
10. h3 {[%clk 0:02:40.8]} 10... Nh7 {[%clk 0:02:59.2]} 11. Be3 {[%clk
0:02:39.6]} 11... Ng5 {[%clk 0:02:58.2]} 12. Nd2 {[%clk 0:02:39.3]} 12... Bf6
{[%clk 0:02:42.9]} 13. f4 {[%clk 0:02:37.2]} 13... Nh7 {[%clk 0:02:32]} 14. Nf3
{[%clk 0:02:36.2]} 14... Qe7 {[%clk 0:02:29.9]} 15. Qc2 {[%clk 0:02:34.5]} 15...
a6 {[%clk 0:02:29]} 16. Rae1 {[%clk 0:02:33.3]} 16... g5 {[%clk 0:02:27.2]} 17.
fxe5 {[%clk 0:02:25.9]} 17... Bxe5 {[%clk 0:02:23.6]} 18. Nxe5 {[%clk
0:02:24.2]} 18... Nxe5 {[%clk 0:02:24.4]} 19. Bd4 {[%clk 0:02:16.9]} 19... Nf8
{[%clk 0:02:12.4]} 20. Nd1 {[%clk 0:02:16.1]} 20... Nfg6 {[%clk 0:01:50.4]} 21.
Ne3 {[%clk 0:02:16]} 21... Bc8 {[%clk 0:01:49.8]} 22. Nf5 {[%clk 0:02:15.9]}
22... Qf8 {[%clk 0:01:41.2]} 23. b4 {[%clk 0:02:15.3]} 23... Bd7 {[%clk
0:01:29.2]} 24. c5 {[%clk 0:02:12.5]} 24... bxc5 {[%clk 0:01:24.7]} 25. bxc5
{[%clk 0:02:12.2]} 25... Bb5 {[%clk 0:01:21.9]} 26. cxd6 {[%clk 0:02:09]} 26...
cxd6 {[%clk 0:01:19.7]} 27. Qc7 {[%clk 0:02:06.5]} 27... Rd8 {[%clk 0:01:13.2]}
28. Bb6 {[%clk 0:02:06.4]} 1-0

[Event "*** Titled Tuesday Blitz"]
[Site "Chess.com"]
[Date "2020.04.14"]
[Round "1"]
[White "FROGGY64"]
[Black "aleksa74"]
[Result "0-1"]
[WhiteElo "2379"]
[BlackElo "2732"]
[TimeControl "180+1"]
[EndTime "10:04:53 PDT"]
[Termination "aleksa74 won by resignation"]

1. d4 {[%clk 0:03:00.9]} 1... Nf6 {[%clk 0:02:59.5]} 2. c4 {[%clk 0:02:59.4]}
2... c5 {[%clk 0:02:59.4]} 3. d5 {[%clk 0:02:59.2]} 3... d6 {[%clk 0:02:59.5]}
4. Nc3 {[%clk 0:02:58.2]} 4... g6 {[%clk 0:03:00.1]} 5. g3 {[%clk 0:02:58]} 5...
e6 {[%clk 0:02:58.7]} 6. Bg2 {[%clk 0:02:57.5]} 6... exd5 {[%clk 0:02:58.8]} 7.
cxd5 {[%clk 0:02:55.6]} 7... Bg7 {[%clk 0:02:59.3]} 8. Nf3 {[%clk 0:02:55.7]}
8... O-O {[%clk 0:03:00]} 9. O-O {[%clk 0:02:55.7]} 9... Re8 {[%clk 0:03:00.5]}
10. Nd2 {[%clk 0:02:55.4]} 10... a6 {[%clk 0:02:56.2]} 11. a4 {[%clk 0:02:54.9]}
11... Nbd7 {[%clk 0:02:56.8]} 12. h3 {[%clk 0:02:53.4]} 12... Rb8 {[%clk
0:02:56.7]} 13. e4 {[%clk 0:02:51]} 13... b5 {[%clk 0:02:54.4]} 14. axb5 {[%clk
0:02:50.5]} 14... axb5 {[%clk 0:02:54.5]} 15. Kh2 {[%clk 0:02:46.3]} 15... c4
{[%clk 0:02:52.6]} 16. Ne2 {[%clk 0:02:40.7]} 16... Nc5 {[%clk 0:02:50.1]} 17.
Nd4 {[%clk 0:02:37.8]} 17... Bd7 {[%clk 0:02:35.5]} 18. N2f3 {[%clk 0:02:15.7]}
18... Nfxe4 {[%clk 0:02:26.8]} 19. Bf4 {[%clk 0:02:13.5]} 19... Nd3 {[%clk
0:02:20.9]} 20. Bc1 {[%clk 0:02:07.2]} 20... Nexf2 {[%clk 0:02:08]} 21. Qc2
{[%clk 0:02:03.8]} 21... Ne4 {[%clk 0:02:06.8]} 22. b3 {[%clk 0:02:00.7]} 22...
Qb6 {[%clk 0:01:53.8]} 23. Be3 {[%clk 0:01:53.2]} 23... Nxg3 {[%clk 0:01:49.7]}
24. Ne6 {[%clk 0:01:47.2]} 24... Nxf1+ {[%clk 0:01:47.5]} 25. Rxf1 {[%clk
0:01:44.4]} 25... Qxe3 {[%clk 0:01:47.2]} 26. Nxg7 {[%clk 0:01:43.8]} 26... Kxg7
{[%clk 0:01:45.9]} 27. bxc4 {[%clk 0:01:44.7]} 27... Nf4 {[%clk 0:01:36.2]} 28.
Re1 {[%clk 0:01:40.2]} 28... Qd3 {[%clk 0:01:28.5]} 29. Qb2+ {[%clk 0:01:40.2]}
29... f6 {[%clk 0:01:28.5]} 30. Rxe8 {[%clk 0:01:24.7]} 30... Rxe8 {[%clk
0:01:29.4]} 31. Nd4 {[%clk 0:01:24.7]} 31... Nxg2 {[%clk 0:01:24.9]} 32. Kxg2
{[%clk 0:01:20.6]} 32... Qxh3+ {[%clk 0:01:23.7]} 33. Kf2 {[%clk 0:01:18.4]}
33... Qh2+ {[%clk 0:01:23.4]} 0-1

[Event "*** Titled Tuesday Blitz"]
[Site "Chess.com"]
[Date "2020.04.14"]
[Round "1"]
[White "KoustavChatterjee1"]
[Black "Kotofeyca"]
[Result "1-0"]
[WhiteElo "2722"]
[BlackElo "2373"]
[TimeControl "180+1"]
[EndTime "10:05:05 PDT"]
[Termination "KoustavChatterjee1 won by resignation"]

1. d4 {[%clk 0:02:58.9]} 1... d5 {[%clk 0:02:59.5]} 2. c4 {[%clk 0:02:58.4]}
2... c6 {[%clk 0:02:59.9]} 3. Nc3 {[%clk 0:02:58.1]} 3... Nf6 {[%clk 0:03:00.3]}
4. e3 {[%clk 0:02:58.4]} 4... a6 {[%clk 0:03:00]} 5. Qc2 {[%clk 0:02:57.6]} 5...
Bg4 {[%clk 0:03:00]} 6. Bd3 {[%clk 0:02:55]} 6... e6 {[%clk 0:02:59.7]} 7. h3
{[%clk 0:02:55]} 7... Bh5 {[%clk 0:02:59.4]} 8. Nge2 {[%clk 0:02:54.7]} 8... Bg6
{[%clk 0:02:58.1]} 9. c5 {[%clk 0:02:51.6]} 9... Bxd3 {[%clk 0:02:56.7]} 10.
Qxd3 {[%clk 0:02:52.5]} 10... e5 {[%clk 0:02:56]} 11. dxe5 {[%clk 0:02:51.5]}
11... Nfd7 {[%clk 0:02:55.6]} 12. f4 {[%clk 0:02:49.5]} 12... Nxc5 {[%clk
0:02:50.1]} 13. Qc2 {[%clk 0:02:49.6]} 13... f6 {[%clk 0:02:45.1]} 14. O-O
{[%clk 0:02:45.6]} 14... Nbd7 {[%clk 0:02:42.4]} 15. e4 {[%clk 0:02:39.1]} 15...
Nxe4 {[%clk 0:02:19.7]} 16. Nxe4 {[%clk 0:02:33.4]} 16... dxe4 {[%clk
0:02:20.6]} 17. Qxe4 {[%clk 0:02:28.8]} 17... Nc5 {[%clk 0:02:20.1]} 18. Qf3
{[%clk 0:02:26.8]} 18... f5 {[%clk 0:02:17.5]} 19. Be3 {[%clk 0:02:24]} 19...
Ne6 {[%clk 0:02:17.4]} 20. g4 {[%clk 0:02:22.8]} 20... fxg4 {[%clk 0:01:58.1]}
21. Qxg4 {[%clk 0:02:19.3]} 21... Nc5 {[%clk 0:01:29.3]} 22. Rad1 {[%clk
0:02:16.5]} 22... Qc8 {[%clk 0:01:29.7]} 23. f5 {[%clk 0:02:14.9]} 23... g6
{[%clk 0:01:18.7]} 24. e6 {[%clk 0:02:08.8]} 24... Qc7 {[%clk 0:00:54.6]} 25. f6
{[%clk 0:02:05.2]} 25... Bd6 {[%clk 0:00:16.4]} 26. f7+ {[%clk 0:01:58.6]} 26...
Kd8 {[%clk 0:00:16.2]} 27. Bxc5 {[%clk 0:01:58.1]} 1-0

[Event "*** Titled Tuesday Blitz"]
[Site "Chess.com"]
[Date "2020.04.14"]
[Round "1"]
[White "ItsCheckM8Mate"]
[Black "Ziachess74"]
[Result "0-1"]
[WhiteElo "2127"]
[BlackElo "2551"]
[TimeControl "180+1"]
[EndTime "10:05:05 PDT"]
[Termination "Ziachess74 won by resignation"]

1. e4 {[%clk 0:02:59.7]} 1... c5 {[%clk 0:02:59.2]} 2. Nf3 {[%clk 0:02:59.3]}
2... d6 {[%clk 0:02:58.9]} 3. d4 {[%clk 0:02:59.2]} 3... cxd4 {[%clk 0:02:59.8]}
4. Nxd4 {[%clk 0:02:58.3]} 4... Nf6 {[%clk 0:03:00.4]} 5. Nc3 {[%clk 0:02:58.3]}
5... Nc6 {[%clk 0:03:00.9]} 6. Bg5 {[%clk 0:02:57.4]} 6... e6 {[%clk 0:03:01.2]}
7. Qd3 {[%clk 0:02:55.8]} 7... a6 {[%clk 0:02:58.3]} 8. Nxc6 {[%clk 0:02:51.2]}
8... bxc6 {[%clk 0:02:57.6]} 9. O-O-O {[%clk 0:02:51.3]} 9... Bd7 {[%clk
0:02:51.5]} 10. Qg3 {[%clk 0:02:38.1]} 10... Be7 {[%clk 0:02:42.1]} 11. Be2
{[%clk 0:02:15.9]} 11... a5 {[%clk 0:02:30.8]} 12. e5 {[%clk 0:01:51]} 12...
dxe5 {[%clk 0:02:17.3]} 13. Qxe5 {[%clk 0:01:42.4]} 13... h6 {[%clk 0:02:01.2]}
14. Bh4 {[%clk 0:01:27.9]} 14... a4 {[%clk 0:01:51.9]} 15. Bf3 {[%clk
0:01:11.4]} 15... a3 {[%clk 0:01:45]} 16. b3 {[%clk 0:01:11.4]} 16... Qa5 {[%clk
0:01:39.3]} 17. Qxa5 {[%clk 0:01:01.2]} 17... Rxa5 {[%clk 0:01:40.2]} 18. Na4
{[%clk 0:00:58.5]} 18... Nd5 {[%clk 0:01:28.4]} 19. Bxe7 {[%clk 0:00:57.6]}
19... Kxe7 {[%clk 0:01:29.3]} 20. c4 {[%clk 0:00:57.3]} 20... Nb4 {[%clk
0:01:25.1]} 21. Kb1 {[%clk 0:00:56.1]} 21... Rb8 {[%clk 0:01:18.3]} 22. Ka1
{[%clk 0:00:55.4]} 22... Rxa4 {[%clk 0:01:15.8]} 0-1

[Event "*** Titled Tuesday Blitz"]
[Site "Chess.com"]
[Date "2020.04.14"]
[Round "1"]
[White "cassoulet"]
[Black "Godzillator"]
[Result "1-0"]
[WhiteElo "2717"]
[BlackElo "2370"]
[TimeControl "180+1"]
[EndTime "10:05:11 PDT"]
[Termination "cassoulet won by resignation"]

1. e4 {[%clk 0:03:00.6]} 1... c6 {[%clk 0:03:00.1]} 2. d4 {[%clk 0:03:00.2]}
2... d5 {[%clk 0:03:00.3]} 3. Nc3 {[%clk 0:03:00.5]} 3... dxe4 {[%clk
0:03:00.3]} 4. Nxe4 {[%clk 0:03:01.4]} 4... Bf5 {[%clk 0:03:00.6]} 5. Ng3 {[%clk
0:03:01.6]} 5... Bg6 {[%clk 0:03:00.9]} 6. Nf3 {[%clk 0:03:02.2]} 6... e6 {[%clk
0:03:00.7]} 7. h4 {[%clk 0:03:02.7]} 7... h6 {[%clk 0:03:00.9]} 8. h5 {[%clk
0:03:02.9]} 8... Bh7 {[%clk 0:03:00.8]} 9. Bd3 {[%clk 0:03:03.3]} 9... Bxd3
{[%clk 0:03:00.8]} 10. Qxd3 {[%clk 0:03:04.2]} 10... Nf6 {[%clk 0:03:00]} 11.
Bf4 {[%clk 0:03:02.6]} 11... Bb4+ {[%clk 0:02:56.4]} 12. c3 {[%clk 0:02:58.7]}
12... Bd6 {[%clk 0:02:56.3]} 13. Be5 {[%clk 0:02:52.7]} 13... Bxe5 {[%clk
0:02:56.2]} 14. Nxe5 {[%clk 0:02:52.5]} 14... Nbd7 {[%clk 0:02:56.4]} 15. O-O-O
{[%clk 0:02:32.8]} 15... O-O {[%clk 0:02:44]} 16. f4 {[%clk 0:02:29.8]} 16...
Nxe5 {[%clk 0:02:35.8]} 17. fxe5 {[%clk 0:02:21.4]} 17... Nd5 {[%clk 0:02:35.7]}
18. Ne4 {[%clk 0:02:20.6]} 18... Kh8 {[%clk 0:02:33]} 19. Rdf1 {[%clk
0:02:18.5]} 19... Rc8 {[%clk 0:02:27.7]} 20. g4 {[%clk 0:02:06.4]} 20... c5
{[%clk 0:02:18.6]} 21. dxc5 {[%clk 0:02:06]} 21... Ne7 {[%clk 0:01:59.3]} 22.
Nd6 {[%clk 0:01:55.7]} 22... Kg8 {[%clk 0:01:44]} 23. g5 {[%clk 0:01:38.2]}
23... Nf5 {[%clk 0:01:32.5]} 24. gxh6 {[%clk 0:01:27.6]} 24... Nxh6 {[%clk
0:01:32.7]} 25. Rhg1 {[%clk 0:01:19.1]} 25... Rxc5 {[%clk 0:01:30.8]} 26. Qe3
{[%clk 0:01:15.8]} 26... Qc7 {[%clk 0:01:02.5]} 27. Qxh6 {[%clk 0:01:05.1]}
27... Rxc3+ {[%clk 0:01:02.5]} 28. Kb1 {[%clk 0:01:05.3]} 1-0

[Event "*** Titled Tuesday Blitz"]
[Site "Chess.com"]
[Date "2020.04.14"]
[Round "1"]
[White "viktorko131"]
[Black "RATNAKARAN"]
[Result "0-1"]
[WhiteElo "2146"]
[BlackElo "2556"]
[TimeControl "180+1"]
[EndTime "10:05:12 PDT"]
[Termination "RATNAKARAN won on time"]

1. e4 {[%clk 0:02:59]} 1... e6 {[%clk 0:02:59.9]} 2. d4 {[%clk 0:02:57.9]} 2...
d5 {[%clk 0:03:00.1]} 3. Nd2 {[%clk 0:02:57.4]} 3... Nf6 {[%clk 0:03:00.1]} 4.
e5 {[%clk 0:02:56.9]} 4... Nfd7 {[%clk 0:03:00.3]} 5. Bd3 {[%clk 0:02:57]} 5...
c5 {[%clk 0:03:00.5]} 6. c3 {[%clk 0:02:55.7]} 6... Nc6 {[%clk 0:02:59.6]} 7.
Ne2 {[%clk 0:02:55.7]} 7... cxd4 {[%clk 0:02:59.5]} 8. cxd4 {[%clk 0:02:55.2]}
8... f6 {[%clk 0:03:00.4]} 9. exf6 {[%clk 0:02:54.4]} 9... Nxf6 {[%clk
0:03:01.3]} 10. O-O {[%clk 0:02:53.2]} 10... Bd6 {[%clk 0:03:02.2]} 11. Nf3
{[%clk 0:02:53.1]} 11... Qc7 {[%clk 0:03:03.1]} 12. Bg5 {[%clk 0:02:51.8]} 12...
O-O {[%clk 0:03:02.7]} 13. Bh4 {[%clk 0:02:49.7]} 13... Nh5 {[%clk 0:03:00.4]}
14. Qc2 {[%clk 0:02:49.6]} 14... h6 {[%clk 0:03:00.2]} 15. Bh7+ {[%clk
0:02:49.5]} 15... Kh8 {[%clk 0:03:00.1]} 16. Bg6 {[%clk 0:02:50.4]} 16... Rxf3
{[%clk 0:02:59.6]} 17. Bxh5 {[%clk 0:02:49.6]} 17... Bxh2+ {[%clk 0:02:56.2]}
18. Kh1 {[%clk 0:02:48.5]} 18... Rf5 {[%clk 0:02:57.1]} 19. Bg6 {[%clk
0:02:31.8]} 19... Bd6 {[%clk 0:02:55.6]} 20. Bxf5 {[%clk 0:02:28.3]} 20... exf5
{[%clk 0:02:55.7]} 21. Bg3 {[%clk 0:02:22.8]} 21... f4 {[%clk 0:02:53.4]} 22.
Nxf4 {[%clk 0:02:16]} 22... Bxf4 {[%clk 0:02:52.6]} 23. Rae1 {[%clk 0:02:16.7]}
23... Bd7 {[%clk 0:02:49]} 24. Re3 {[%clk 0:01:17.1]} 24... Bxg3 {[%clk
0:02:44.5]} 25. fxg3 {[%clk 0:01:06.8]} 25... Qd6 {[%clk 0:02:43.8]} 26. Rf7
{[%clk 0:00:49.1]} 26... Be8 {[%clk 0:02:34.1]} 27. Rxb7 {[%clk 0:00:40.1]}
27... Bg6 {[%clk 0:02:22.5]} 28. Qd2 {[%clk 0:00:16.7]} 28... Rf8 {[%clk
0:02:21]} 29. b4 {[%clk 0:00:03]} 29... Be4 {[%clk 0:02:19.3]} 30. b5 {[%clk
0:00:01.2]} 30... Ne7 {[%clk 0:02:16.5]} 31. Rxa7 {[%clk 0:00:01.3]} 31... Nf5
{[%clk 0:02:15.9]} 32. Rxe4 {[%clk 0:00:01]} 32... Nxg3+ {[%clk 0:02:14.7]} 0-1

[Event "*** Titled Tuesday Blitz"]
[Site "Chess.com"]
[Date "2020.04.14"]
[Round "1"]
[White "TV27"]
[Black "Fighter008"]
[Result "0-1"]
[WhiteElo "2058"]
[BlackElo "2531"]
[TimeControl "180+1"]
[EndTime "10:05:14 PDT"]
[Termination "Fighter008 won by resignation"]

1. c4 {[%clk 0:02:55.6]} 1... g6 {[%clk 0:02:59.2]} 2. Nc3 {[%clk 0:02:54]} 2...
Bg7 {[%clk 0:02:59.3]} 3. g3 {[%clk 0:02:51.9]} 3... e5 {[%clk 0:02:58.5]} 4.
Bg2 {[%clk 0:02:51.2]} 4... Nc6 {[%clk 0:02:58.5]} 5. e4 {[%clk 0:02:47]} 5...
d6 {[%clk 0:02:56.5]} 6. d3 {[%clk 0:02:45.9]} 6... Be6 {[%clk 0:02:55]} 7. Nge2
{[%clk 0:02:44.6]} 7... h5 {[%clk 0:02:54.3]} 8. h4 {[%clk 0:02:36.3]} 8... Qd7
{[%clk 0:02:37.4]} 9. Be3 {[%clk 0:02:31.5]} 9... Nf6 {[%clk 0:02:30.5]} 10. f3
{[%clk 0:02:30.2]} 10... Ng8 {[%clk 0:02:28.9]} 11. Qd2 {[%clk 0:02:28.8]} 11...
Nge7 {[%clk 0:02:28.5]} 12. O-O-O {[%clk 0:02:27.5]} 12... Nd4 {[%clk
0:02:25.8]} 13. Kb1 {[%clk 0:02:24.6]} 13... c6 {[%clk 0:02:22.2]} 14. Rhf1
{[%clk 0:02:19.8]} 14... b5 {[%clk 0:02:17]} 15. Rc1 {[%clk 0:02:11.3]} 15... b4
{[%clk 0:02:11.1]} 16. Nd1 {[%clk 0:02:10]} 16... a5 {[%clk 0:02:09.4]} 17. Bxd4
{[%clk 0:02:08]} 17... exd4 {[%clk 0:02:08.7]} 18. Nf4 {[%clk 0:02:07.5]} 18...
O-O {[%clk 0:01:56.4]} 19. Nf2 {[%clk 0:02:05.9]} 19... d5 {[%clk 0:01:52.7]}
20. Nxe6 {[%clk 0:02:04.7]} 20... Qxe6 {[%clk 0:01:47]} 21. Bh3 {[%clk
0:02:03.8]} 21... Qd6 {[%clk 0:01:44.5]} 22. c5 {[%clk 0:02:00.6]} 22... Qxg3
{[%clk 0:01:43.5]} 23. f4 {[%clk 0:01:52.7]} 23... Qe3 {[%clk 0:01:36.4]} 24.
Qc2 {[%clk 0:01:49.8]} 24... Qxf4 {[%clk 0:01:32.1]} 25. exd5 {[%clk 0:01:43.4]}
25... Nxd5 {[%clk 0:01:31.4]} 26. Ne4 {[%clk 0:01:40.7]} 26... Qxh4 {[%clk
0:01:31]} 27. Rh1 {[%clk 0:01:33.4]} 27... Qe7 {[%clk 0:01:26.9]} 28. Qd2 {[%clk
0:01:29.2]} 28... Ne3 {[%clk 0:01:24.9]} 29. Rcg1 {[%clk 0:01:27.5]} 29... b3
{[%clk 0:01:19.5]} 30. a3 {[%clk 0:01:24.3]} 30... a4 {[%clk 0:01:18.4]} 31. Ng5
{[%clk 0:01:21.1]} 31... Qxc5 {[%clk 0:01:15.7]} 32. Rc1 {[%clk 0:01:15.2]}
32... Qxg5 {[%clk 0:01:14.7]} 0-1

[Event "*** Titled Tuesday Blitz"]
[Site "Chess.com"]
[Date "2020.04.14"]
[Round "1"]
[White "KacperPolOK"]
[Black "saikrishnaReturns"]
[Result "0-1"]
[WhiteElo "2248"]
[BlackElo "2609"]
[TimeControl "180+1"]
[EndTime "10:05:16 PDT"]
[Termination "saikrishnaReturns won by resignation"]

1. e4 {[%clk 0:02:58.2]} 1... e5 {[%clk 0:03:00]} 2. Nf3 {[%clk 0:02:57.8]} 2...
Nc6 {[%clk 0:03:00.9]} 3. Bb5 {[%clk 0:02:57.8]} 3... a6 {[%clk 0:03:00.5]} 4.
Ba4 {[%clk 0:02:57.4]} 4... d6 {[%clk 0:03:01.4]} 5. c3 {[%clk 0:02:55.7]} 5...
f5 {[%clk 0:03:01.6]} 6. exf5 {[%clk 0:02:44.1]} 6... Bxf5 {[%clk 0:03:02.5]} 7.
d4 {[%clk 0:02:44.7]} 7... e4 {[%clk 0:03:00.7]} 8. d5 {[%clk 0:02:13.7]} 8...
exf3 {[%clk 0:03:00.5]} 9. dxc6 {[%clk 0:02:13.6]} 9... b5 {[%clk 0:03:00.3]}
10. Qxf3 {[%clk 0:02:13.8]} 10... Bxb1 {[%clk 0:02:59.6]} 11. Rxb1 {[%clk
0:01:58.2]} 11... bxa4 {[%clk 0:02:57.3]} 12. O-O {[%clk 0:01:58]} 12... Nf6
{[%clk 0:02:54.6]} 13. Qf4 {[%clk 0:01:41.8]} 13... Be7 {[%clk 0:02:51.3]} 14.
Qxa4 {[%clk 0:01:41.5]} 14... O-O {[%clk 0:02:51]} 15. Be3 {[%clk 0:01:40.2]}
15... d5 {[%clk 0:02:47]} 16. Rfe1 {[%clk 0:01:39.5]} 16... Bd6 {[%clk
0:02:36.3]} 17. h3 {[%clk 0:01:38.6]} 17... Qb8 {[%clk 0:02:33.6]} 18. c4 {[%clk
0:01:30.4]} 18... Qb4 {[%clk 0:02:11.3]} 19. Qxb4 {[%clk 0:01:16.4]} 19... Bxb4
{[%clk 0:02:12.2]} 20. Red1 {[%clk 0:01:16.7]} 20... dxc4 {[%clk 0:02:10.3]} 21.
Rbc1 {[%clk 0:01:16.4]} 21... Rfd8 {[%clk 0:02:07.1]} 22. Rxd8+ {[%clk
0:01:15.7]} 22... Rxd8 {[%clk 0:02:06.4]} 23. Rxc4 {[%clk 0:01:16.6]} 23... Rd1+
{[%clk 0:02:06.2]} 24. Kh2 {[%clk 0:01:16.9]} 24... Bd6+ {[%clk 0:02:05.1]} 25.
g3 {[%clk 0:01:17.4]} 25... Nd5 {[%clk 0:02:05.3]} 26. Bc5 {[%clk 0:01:06.2]}
26... Be5 {[%clk 0:01:58.8]} 27. b4 {[%clk 0:01:01.5]} 27... Ra1 {[%clk
0:01:51.9]} 28. a3 {[%clk 0:01:01.8]} 28... Rxa3 {[%clk 0:01:47.4]} 29. b5
{[%clk 0:00:56.6]} 29... axb5 {[%clk 0:01:39.7]} 30. Re4 {[%clk 0:00:56.5]}
30... Rc3 {[%clk 0:01:39.5]} 31. Bd4 {[%clk 0:00:40.2]} 31... Bxd4 {[%clk
0:01:28.8]} 32. Rxd4 {[%clk 0:00:41.1]} 32... Nf6 {[%clk 0:01:28.8]} 0-1

[Event "*** Titled Tuesday Blitz"]
[Site "Chess.com"]
[Date "2020.04.14"]
[Round "1"]
[White "Luibov_AN"]
[Black "ChessAintFun"]
[Result "1-0"]
[WhiteElo "2180"]
[BlackElo "2544"]
[TimeControl "180+1"]
[EndTime "10:05:20 PDT"]
[Termination "Luibov_AN won by checkmate"]

1. d4 {[%clk 0:02:58.4]} 1... Nf6 {[%clk 0:03:00]} 2. Nf3 {[%clk 0:02:58.4]}
2... g6 {[%clk 0:03:00.2]} 3. Bg5 {[%clk 0:02:55.8]} 3... Ne4 {[%clk 0:02:59.8]}
4. Bh4 {[%clk 0:02:55.4]} 4... d5 {[%clk 0:03:00.2]} 5. Nbd2 {[%clk 0:02:54.7]}
5... Bg7 {[%clk 0:03:00.7]} 6. e3 {[%clk 0:02:54.8]} 6... c5 {[%clk 0:02:59.6]}
7. c3 {[%clk 0:02:50]} 7... Nc6 {[%clk 0:02:59.5]} 8. Bd3 {[%clk 0:02:47.1]}
8... Nxd2 {[%clk 0:02:55.5]} 9. Qxd2 {[%clk 0:02:45.9]} 9... Bg4 {[%clk
0:02:55.7]} 10. Be2 {[%clk 0:02:42.5]} 10... Qd7 {[%clk 0:02:42.9]} 11. h3
{[%clk 0:02:42]} 11... Bf5 {[%clk 0:02:43.3]} 12. O-O {[%clk 0:02:37.4]} 12...
O-O {[%clk 0:02:40.2]} 13. Bg3 {[%clk 0:02:35.8]} 13... Be4 {[%clk 0:02:28.9]}
14. dxc5 {[%clk 0:02:34.3]} 14... e5 {[%clk 0:02:26.9]} 15. Rad1 {[%clk
0:02:29.4]} 15... Qe7 {[%clk 0:02:21.9]} 16. b4 {[%clk 0:02:28.7]} 16... Rad8
{[%clk 0:02:19.6]} 17. Qc1 {[%clk 0:02:21.3]} 17... f5 {[%clk 0:02:14.2]} 18.
Bh4 {[%clk 0:02:12.9]} 18... Bf6 {[%clk 0:02:14.6]} 19. Bxf6 {[%clk 0:02:12.5]}
19... Qxf6 {[%clk 0:02:15.5]} 20. a3 {[%clk 0:02:12.7]} 20... g5 {[%clk
0:02:11.5]} 21. Nd2 {[%clk 0:02:06.3]} 21... f4 {[%clk 0:02:07.4]} 22. Nxe4
{[%clk 0:02:05]} 22... dxe4 {[%clk 0:02:08.3]} 23. Bc4+ {[%clk 0:02:04.7]} 23...
Kg7 {[%clk 0:02:07.7]} 24. Qc2 {[%clk 0:02:04]} 24... Qg6 {[%clk 0:01:30.1]} 25.
Bd5 {[%clk 0:01:57.5]} 25... g4 {[%clk 0:01:28]} 26. Bxe4 {[%clk 0:01:51]} 26...
Qg5 {[%clk 0:01:28.1]} 27. hxg4 {[%clk 0:01:46.2]} 27... Qxg4 {[%clk 0:01:28.2]}
28. Bf3 {[%clk 0:01:46.3]} 28... Qg5 {[%clk 0:01:26.5]} 29. Qe4 {[%clk
0:01:40.9]} 29... Kh8 {[%clk 0:01:25.2]} 30. Rd6 {[%clk 0:01:37.8]} 30... Ne7
{[%clk 0:01:04.9]} 31. Rfd1 {[%clk 0:01:34.4]} 31... Rde8 {[%clk 0:01:04.9]} 32.
Rd7 {[%clk 0:01:22.5]} 32... Nf5 {[%clk 0:01:05.1]} 33. R1d3 {[%clk 0:01:11.9]}
33... fxe3 {[%clk 0:01:04.9]} 34. Rxe3 {[%clk 0:01:07.2]} 34... Nxe3 {[%clk
0:01:03.1]} 35. Qxh7# {[%clk 0:01:06.8]} 1-0

[Event "*** Titled Tuesday Blitz"]
[Site "Chess.com"]
[Date "2020.04.14"]
[Round "1"]
[White "mjray79"]
[Black "LizaSolovyova"]
[Result "0-1"]
[WhiteElo "2250"]
[BlackElo "2613"]
[TimeControl "180+1"]
[EndTime "10:05:21 PDT"]
[Termination "LizaSolovyova won by checkmate"]

1. d4 {[%clk 0:02:59.4]} 1... f5 {[%clk 0:02:58.3]} 2. c4 {[%clk 0:02:59.4]}
2... Nf6 {[%clk 0:02:58.5]} 3. g3 {[%clk 0:02:59.9]} 3... e6 {[%clk 0:02:58.9]}
4. Bg2 {[%clk 0:03:00.4]} 4... Be7 {[%clk 0:02:59.6]} 5. Nf3 {[%clk 0:03:00.8]}
5... O-O {[%clk 0:03:00.5]} 6. O-O {[%clk 0:03:01.4]} 6... d6 {[%clk 0:03:01.4]}
7. Nc3 {[%clk 0:03:01.9]} 7... Qe8 {[%clk 0:03:01.7]} 8. Qc2 {[%clk 0:03:02.1]}
8... Qg6 {[%clk 0:03:00]} 9. e4 {[%clk 0:02:57.6]} 9... Nxe4 {[%clk 0:02:56.8]}
10. Nxe4 {[%clk 0:02:55.5]} 10... fxe4 {[%clk 0:02:57.7]} 11. Nh4 {[%clk
0:02:43.9]} 11... Bxh4 {[%clk 0:02:56.7]} 12. Bxe4 {[%clk 0:02:43.7]} 12... Qh5
{[%clk 0:02:56.7]} 13. gxh4 {[%clk 0:02:43.2]} 13... Qxh4 {[%clk 0:02:56.6]} 14.
Kh1 {[%clk 0:02:42.3]} 14... Nc6 {[%clk 0:02:55.7]} 15. Be3 {[%clk 0:02:37.2]}
15... e5 {[%clk 0:02:53.9]} 16. Rg1 {[%clk 0:02:30.9]} 16... Nxd4 {[%clk
0:02:50.6]} 17. Bxd4 {[%clk 0:02:16]} 17... exd4 {[%clk 0:02:50]} 18. Bd5+
{[%clk 0:02:12.8]} 18... Kh8 {[%clk 0:02:49.3]} 19. Rg3 {[%clk 0:02:07.7]} 19...
Bf5 {[%clk 0:02:47.3]} 20. Qd2 {[%clk 0:02:05.5]} 20... Be4+ {[%clk 0:02:45.6]}
21. Kg1 {[%clk 0:02:01.1]} 21... Bxd5 {[%clk 0:02:41]} 22. cxd5 {[%clk 0:02:02]}
22... Rae8 {[%clk 0:02:37.6]} 23. Kh1 {[%clk 0:02:00.8]} 23... Qe4+ {[%clk
0:02:34.7]} 24. Kg1 {[%clk 0:01:58.7]} 24... Qxd5 {[%clk 0:02:34.2]} 25. Rc1
{[%clk 0:01:55.6]} 25... c5 {[%clk 0:02:33.4]} 26. b4 {[%clk 0:01:53.9]} 26...
b5 {[%clk 0:02:27.7]} 27. Rg5 {[%clk 0:01:49.6]} 27... Rf5 {[%clk 0:02:27.4]}
28. Rg4 {[%clk 0:01:42.2]} 28... Ref8 {[%clk 0:02:25.1]} 29. bxc5 {[%clk
0:01:38.4]} 29... dxc5 {[%clk 0:02:26]} 30. Rf1 {[%clk 0:01:38.2]} 30... d3
{[%clk 0:02:19.5]} 31. Qa5 {[%clk 0:01:33.9]} 31... c4 {[%clk 0:02:08.2]} 32.
Qxa7 {[%clk 0:01:25.9]} 32... Rg5 {[%clk 0:02:07.6]} 33. Rg3 {[%clk 0:01:20.2]}
33... Rxg3+ {[%clk 0:02:07.1]} 34. hxg3 {[%clk 0:01:20.6]} 34... d2 {[%clk
0:02:05]} 35. Qe7 {[%clk 0:01:20.1]} 35... Qd8 {[%clk 0:02:02.5]} 36. Qe2 {[%clk
0:01:19]} 36... c3 {[%clk 0:02:01.7]} 37. Qd1 {[%clk 0:01:16.6]} 37... Qd3
{[%clk 0:02:00.5]} 38. Kg2 {[%clk 0:01:16.2]} 38... c2 {[%clk 0:02:00]} 39. Qh5
{[%clk 0:01:10.9]} 39... Qxf1+ {[%clk 0:01:59.7]} 40. Kxf1 {[%clk 0:01:09.9]}
40... d1=Q+ {[%clk 0:01:59.1]} 41. Kg2 {[%clk 0:01:10.8]} 41... Qxh5 {[%clk
0:01:58.7]} 42. a4 {[%clk 0:01:08.1]} 42... Qf3+ {[%clk 0:01:58.3]} 43. Kh3
{[%clk 0:01:06.9]} 43... h5 {[%clk 0:01:54.8]} 44. axb5 {[%clk 0:01:06.5]} 44...
Qh1# {[%clk 0:01:54.2]} 0-1